bitfinex-derivatives/quotes_ETHF0:USTF0_20260222
["timestamp","ask_amount","ask_price","bid_price","bid_amount"]
[1771738728820,5.77791913,1974.0,1973.4,0.59691111]
[1771738729026,0.00669194,1974.1,1973.4,0.59691111]
[1771738729223,5.77791913,1974.0,1973.4,0.59691111]
[1771738729424,0.00669194,1974.1,1973.4,0.59691111]
[1771738729623,5.77786836,1974.0,1973.4,0.59691111]
[1771738729824,0.00669194,1974.1,1973.4,0.59691111]
[1771738730123,5.77786836,1974.0,1973.4,0.59691111]
[1771738730327,0.00669194,1974.1,1973.4,0.59691111]
[1771738730527,5.77781868,1974.0,1973.4,0.59691111]
[1771738730726,0.00669194,1974.1,1973.4,0.59691111]
[1771738730924,5.77781793,1974.0,1973.4,0.59691111]
[1771738731127,0.00669194,1974.1,1973.4,0.59691111]
[1771738731323,5.77781793,1974.0,1973.4,0.59691111]
[1771738731625,0.00669194,1974.1,1973.4,0.59691111]
[1771738731827,5.7777784,1974.0,1973.4,0.59691111]
[1771738732023,0.00669194,1974.1,1973.4,0.59691111]
[1771738732227,5.77777836,1974.0,1973.4,0.59691111]
[1771738732423,0.00669194,1974.1,1973.4,0.59691111]
[1771738732733,5.78545606,1974.0,1973.4,0.59691111]
[1771738733034,5.78549169,1973.9,1973.4,0.59691111]
[1771738733333,0.00771192,1973.9,1973.4,0.59691111]
[1771738746841,0.00591509,1974.1,1973.4,0.59691111]
[1771738747049,0.00591509,1973.9,1973.5,0.59953177]
[1771738748347,4.25439198,1974.2,1973.5,0.59953177]
[1771738748550,0.00596743,1974.0,1973.5,0.59953177]
[1771738748746,5.7785665,1973.9,1973.5,0.59953177]
[1771738752947,4.25439198,1974.2,1973.5,0.59953177]
[1771738753248,5.77851972,1974.1,1973.5,0.59953177]
[1771738753546,5.77851972,1974.0,1973.5,0.59953177]
[1771738753742,5.77851972,1973.9,1973.5,0.59953177]
[1771738753943,4.25439198,1974.2,1973.5,0.59953177]
[1771738754143,5.7785133,1974.1,1973.5,0.59953177]
[1771738754343,5.7785133,1974.0,1973.5,0.59953177]
[1771738772866,0.01107176,1973.9,1973.5,0.59953177]
[1771738784272,0.01168398,1974.0,1973.5,0.59953177]
[1771738784467,5.78422148,1973.9,1973.5,0.59953177]
[1771738784667,0.01168398,1974.0,1973.5,0.59953177]
[1771738784863,5.78422126,1973.9,1973.5,0.59953177]
[1771738785065,0.01168398,1974.0,1973.5,0.59953177]
[1771738785269,5.78423383,1973.9,1973.5,0.59953177]
[1771738785465,0.01168398,1974.0,1973.5,0.59953177]
[1771738785674,5.78423392,1973.9,1973.5,0.59953177]
[1771738785875,0.01168398,1974.0,1973.5,0.59953177]
[1771738786074,5.7842341,1973.9,1973.5,0.59953177]
[1771738786275,0.01168398,1974.0,1973.5,0.59953177]
[1771738786477,5.78425481,1973.9,1973.5,0.59953177]
[1771738786773,0.01168398,1974.0,1973.5,0.59953177]
[1771738786973,1.1507545,1974.1,1973.2,1.1507545]
[1771738786974,0.01189428,1973.8,1973.2,0.59655802]
[1771738787174,0.01189428,1973.6,1973.2,0.59655802]
[1771738792782,1.15789458,1973.7,1973.2,0.59655802]
[1771738792983,0.00714008,1973.7,1973.2,0.59655802]
[1771738794178,0.00714008,1973.9,1973.2,0.59655802]
[1771738794385,5.78662488,1973.8,1973.5,0.59893512]
[1771738794584,4.26153206,1974.1,1973.5,0.59893512]
[1771738794784,5.79299045,1974.0,1973.5,0.59893512]
[1771738795085,5.78658792,1973.9,1973.5,0.59893512]
[1771738803290,5.79196148,1973.9,1973.5,0.59893512]
[1771738803490,5.78658792,1973.8,1973.5,0.59893512]
[1771738821303,0.00537356,1973.9,1973.5,0.59893512]
[1771738821504,5.79234479,1973.8,1973.5,0.59893512]
[1771738821704,0.00537356,1973.9,1973.5,0.59893512]
[1771738821904,5.7923441,1973.8,1973.5,0.59893512]
[1771738822106,0.00537356,1973.9,1973.5,0.59893512]
[1771738822406,5.79276702,1973.8,1973.5,0.59893512]
[1771738822606,0.00537356,1973.9,1973.5,0.59893512]
[1771738822808,5.79276414,1973.8,1973.5,0.59893512]
[1771738823106,0.00537356,1973.9,1973.5,0.59893512]
[1771738823405,5.79332107,1973.8,1973.5,0.59893512]
[1771738823606,0.00537356,1973.9,1973.5,0.59893512]
[1771738823807,5.79263005,1973.8,1973.5,0.59893512]
[1771738824013,0.00537356,1973.9,1973.5,0.59893512]
[1771738824207,5.79263092,1973.8,1973.5,0.59893512]
[1771738824406,5.79263092,1973.7,1973.5,0.59893512]
[1771738824608,0.00537356,1973.9,1973.5,0.59893512]
[1771738824806,5.79405052,1973.8,1973.5,0.59893512]
[1771738825008,5.79405052,1973.7,1973.5,0.59893512]
[1771738825302,0.00537356,1973.9,1973.5,0.59893512]
[1771738825508,5.79405422,1973.8,1973.5,0.59893512]
[1771738825808,5.79405422,1973.7,1973.5,0.59893512]
[1771738826007,0.00537356,1973.9,1973.5,0.59893512]
[1771738826210,5.7940554,1973.8,1973.5,0.59893512]
[1771738826410,5.7940554,1973.7,1973.5,0.59893512]
[1771738826611,0.00537356,1973.9,1973.5,0.59893512]
[1771738826803,5.79406216,1973.8,1973.5,0.59893512]
[1771738827006,5.79406216,1973.7,1973.5,0.59893512]
[1771738827206,0.00537356,1973.9,1973.5,0.59893512]
[1771738827408,5.79407041,1973.8,1973.5,0.59893512]
[1771738827607,5.79407041,1973.7,1973.5,0.59893512]
[1771738827908,0.00537356,1973.9,1973.5,0.59893512]
[1771738828108,5.79406933,1973.8,1973.5,0.59893512]
[1771738828310,5.79406933,1973.7,1973.5,0.59893512]
[1771738828608,0.00537356,1973.9,1973.5,0.59893512]
[1771738828809,5.79407875,1973.8,1973.5,0.59893512]
[1771738829011,5.79407875,1973.7,1973.5,0.59893512]
[1771738829207,0.00537356,1973.9,1973.5,0.59893512]
[1771738829703,5.79409527,1973.8,1973.5,0.59893512]
[1771738829906,5.79409527,1973.7,1973.5,0.59893512]
[1771738830101,0.00537356,1973.9,1973.5,0.59893512]
[1771738830309,5.79409569,1973.8,1973.5,0.59893512]
[1771738830510,5.79409569,1973.7,1973.5,0.59893512]
[1771738830711,0.00537356,1973.9,1973.5,0.59893512]
[1771738831011,5.79409618,1973.8,1973.5,0.59893512]
[1771738831212,5.79409618,1973.7,1973.5,0.59893512]
[1771738831413,0.00537356,1973.9,1973.5,0.59893512]
[1771738831713,5.79411942,1973.8,1973.5,0.59893512]
[1771738831912,5.79411942,1973.7,1973.5,0.59893512]
[1771738832113,0.00537356,1973.9,1973.5,0.59893512]
[1771738832313,5.79410299,1973.8,1973.5,0.59893512]
[1771738832513,5.79410299,1973.7,1973.5,0.59893512]
[1771738832713,0.00537356,1973.9,1973.5,0.59893512]
[1771738832913,5.79409875,1973.8,1973.5,0.59893512]
[1771738833113,5.79409875,1973.7,1973.5,0.59893512]
[1771738833417,0.00537356,1973.9,1973.5,0.59893512]
[1771738833616,5.79398658,1973.8,1973.5,0.59893512]
[1771738833817,5.79398658,1973.7,1973.5,0.59893512]
[1771738834017,0.00537356,1973.9,1973.5,0.59893512]
[1771738834218,5.793755,1973.8,1973.5,0.59893512]
[1771738834415,5.793755,1973.7,1973.5,0.59893512]
[1771738834617,0.00537356,1973.9,1973.5,0.59893512]
[1771738834916,5.7935838,1973.8,1973.5,0.59893512]
[1771738835115,5.7935838,1973.7,1973.5,0.59893512]
[1771738835318,0.00537356,1973.9,1973.5,0.59893512]
[1771738835614,5.79363581,1973.8,1973.5,0.59893512]
[1771738835816,0.00537356,1973.9,1973.5,0.59893512]
[1771738836016,5.79361653,1973.8,1973.5,0.59893512]
[1771738836217,0.00537356,1973.9,1973.5,0.59893512]
[1771738836418,5.79344668,1973.8,1973.5,0.59893512]
[1771738836618,0.00537356,1973.9,1973.5,0.59893512]
[1771738836818,5.79344632,1973.8,1973.5,0.59893512]
[1771738837019,0.00537356,1973.9,1973.5,0.59893512]
[1771738837217,5.79327537,1973.8,1973.5,0.59893512]
[1771738837418,0.00537356,1973.9,1973.5,0.59893512]
[1771738837617,5.79318806,1973.8,1973.5,0.59893512]
[1771738837819,0.00537356,1973.9,1973.5,0.59893512]
[1771738838020,5.79318745,1973.8,1973.5,0.59893512]
[1771738838317,0.00537356,1973.9,1973.5,0.59893512]
[1771738838518,5.79307442,1973.8,1973.5,0.59893512]
[1771738838818,0.00537356,1973.9,1973.5,0.59893512]
[1771738839024,5.79307456,1973.8,1973.5,0.59893512]
[1771738839317,0.00537356,1973.9,1973.5,0.59893512]
[1771738839618,5.79292176,1973.8,1973.5,0.59893512]
[1771738839818,0.00537356,1973.9,1973.5,0.59893512]
[1771738840018,5.79292212,1973.8,1973.5,0.59893512]
[1771738840211,0.00537356,1973.9,1973.5,0.59893512]
[1771738840411,5.79279702,1973.8,1973.5,0.59893512]
[1771738840610,0.00537356,1973.9,1973.5,0.59893512]
[1771738840814,5.79271892,1973.8,1973.5,0.59893512]
[1771738841014,0.00537356,1973.9,1973.5,0.59893512]
[1771738841220,5.79271946,1973.8,1973.5,0.59893512]
[1771738841519,4.25350635,1974.0,1973.5,0.59893512]
[1771738841720,5.79269536,1973.9,1973.5,0.59893512]
[1771738841920,5.79269536,1973.8,1973.5,0.59893512]
[1771738842123,4.25350635,1974.0,1973.5,0.59893512]
[1771738842319,5.79248782,1973.9,1973.5,0.59893512]
[1771738842520,5.79248782,1973.8,1973.5,0.59893512]
[1771738842721,4.25350635,1974.0,1973.5,0.59893512]
[1771738842918,5.79248782,1973.9,1973.5,0.59893512]
[1771738843119,5.79248782,1973.8,1973.5,0.59893512]
[1771738843320,4.25350635,1974.0,1973.5,0.59893512]
[1771738843620,5.79231173,1973.9,1973.5,0.59893512]
[1771738843822,5.79231173,1973.8,1973.5,0.59893512]
[1771738844123,4.25350635,1974.0,1973.5,0.59893512]
[1771738844426,5.79218631,1973.9,1973.5,0.59893512]
[1771738844629,5.79218631,1973.8,1973.5,0.59893512]
[1771738844829,4.25350635,1974.0,1973.5,0.59893512]
[1771738845029,5.79218898,1973.9,1973.5,0.59893512]
[1771738845229,5.79218898,1973.8,1973.5,0.59893512]
[1771738845429,4.25350635,1974.0,1973.5,0.59893512]
[1771738845628,5.79211783,1973.9,1973.5,0.59893512]
[1771738845831,5.79211783,1973.8,1973.5,0.59893512]
[1771738846129,4.25350635,1974.0,1973.5,0.59893512]
[1771738846328,5.79220088,1973.9,1973.5,0.59893512]
[1771738846529,5.79220088,1973.8,1973.5,0.59893512]
[1771738846730,4.25350635,1974.0,1973.5,0.59893512]
[1771738846930,5.79220088,1973.9,1973.5,0.59893512]
[1771738847132,5.79220088,1973.8,1973.5,0.59893512]
[1771738847335,4.25350635,1974.0,1973.5,0.59893512]
[1771738847530,5.79213287,1973.9,1973.5,0.59893512]
[1771738847827,5.79213287,1973.8,1973.5,0.59893512]
[1771738848028,4.25350635,1974.0,1973.5,0.59893512]
[1771738848228,5.79206286,1973.9,1973.5,0.59893512]
[1771738848433,5.79206286,1973.8,1973.5,0.59893512]
[1771738848730,4.25350635,1974.0,1973.5,0.59893512]
[1771738848929,5.79204674,1973.9,1973.5,0.59893512]
[1771738849130,5.79204674,1973.8,1973.5,0.59893512]
[1771738849331,4.25350635,1974.0,1973.5,0.59893512]
[1771738849526,5.79201712,1973.9,1973.5,0.59893512]
[1771738849728,5.79201712,1973.8,1973.5,0.59893512]
[1771738849930,4.25350635,1974.0,1973.5,0.59893512]
[1771738850133,5.79201712,1973.9,1973.5,0.59893512]
[1771738850434,5.79201712,1973.8,1973.5,0.59893512]
[1771738850625,4.25350635,1974.0,1973.5,0.59893512]
[1771738850829,5.79199764,1973.9,1973.5,0.59893512]
[1771738851031,5.79199764,1973.8,1973.5,0.59893512]
[1771738851234,4.25350635,1974.0,1973.5,0.59893512]
[1771738851434,5.79198316,1973.9,1973.5,0.59893512]
[1771738851628,5.79198316,1973.8,1973.5,0.59893512]
[1771738851833,4.25350635,1974.0,1973.5,0.59893512]
[1771738852029,5.79198262,1973.9,1973.5,0.59893512]
[1771738852235,5.79198262,1973.8,1973.5,0.59893512]
[1771738852436,4.25350635,1974.0,1973.5,0.59893512]
[1771738852732,0.00264173,1973.8,1973.5,0.59893512]
[1771738858145,4.25350635,1974.0,1973.5,0.59893512]
[1771738858345,5.79490199,1973.9,1973.5,0.59893512]
[1771738858544,5.79199648,1973.8,1973.5,0.59893512]
[1771738858847,0.00290551,1973.9,1973.5,0.59893512]
[1771738859142,5.79199584,1973.8,1973.5,0.59893512]
[1771738859344,0.00290551,1973.9,1973.5,0.59893512]
[1771738859544,5.79204593,1973.8,1973.5,0.59893512]
[1771738859744,0.00290551,1973.9,1973.5,0.59893512]
[1771738859944,5.79204651,1973.8,1973.5,0.59893512]
[1771738860141,0.00290551,1973.9,1973.5,0.59893512]
[1771738860340,5.79209369,1973.8,1973.5,0.59893512]
[1771738860540,0.00290551,1973.9,1973.5,0.59893512]
[1771738860840,5.7920936,1973.8,1973.5,0.59893512]
[1771738861044,0.00290551,1973.9,1973.5,0.59893512]
[1771738861247,5.79215227,1973.8,1973.5,0.59893512]
[1771738861446,0.00290551,1973.9,1973.5,0.59893512]
[1771738861650,5.79216592,1973.8,1973.5,0.59893512]
[1771738861944,0.00290551,1973.9,1973.5,0.59893512]
[1771738862146,5.79214828,1973.8,1973.5,0.59893512]
[1771738862346,0.00290551,1973.9,1973.5,0.59893512]
[1771738862544,5.79223726,1973.8,1973.5,0.59893512]
[1771738862749,0.00290551,1973.9,1973.5,0.59893512]
[1771738862936,5.79222211,1973.8,1973.5,0.59893512]
[1771738863143,0.00290551,1973.9,1973.5,0.59893512]
[1771738863344,5.79232573,1973.8,1973.5,0.59893512]
[1771738863644,0.00290551,1973.9,1973.5,0.59893512]
[1771738863843,5.79232573,1973.8,1973.5,0.59893512]
[1771738864040,0.00290551,1973.9,1973.5,0.59893512]
[1771738864347,0.002795,1973.7,1973.3,0.60111666]
[1771738864549,1.15358233,1973.7,1973.3,0.60111666]
[1771738864746,1.15358233,1973.5,1973.1,0.60111666]
[1771738865047,0.00276072,1973.4,1973.1,0.60111666]
[1771738865646,1.15354805,1973.5,1973.1,0.60111666]
[1771738866549,5.4070544,1973.9,1973.1,0.60111666]
[1771738866847,5.7878403,1973.8,1973.3,0.6011338]
[1771738867043,5.7878403,1973.7,1973.3,0.6011338]
[1771738867243,0.01356713,1973.8,1973.3,0.6011338]
[1771738867448,5.78762862,1973.7,1973.3,0.6011338]
[1771738867645,0.01356713,1973.8,1973.3,0.6011338]
[1771738867946,5.78762578,1973.7,1973.3,0.6011338]
[1771738868246,0.01356713,1973.8,1973.3,0.6011338]
[1771738868447,5.7873713,1973.7,1973.3,0.6011338]
[1771738868646,0.01356713,1973.8,1973.3,0.6011338]
[1771738868845,5.78738573,1973.7,1973.3,0.6011338]
[1771738869038,0.01356713,1973.8,1973.3,0.6011338]
[1771738869238,5.78728709,1973.7,1973.3,0.6011338]
[1771738869438,0.01356713,1973.8,1973.3,0.6011338]
[1771738869641,5.78719293,1973.7,1973.3,0.6011338]
[1771738869842,0.01356713,1973.8,1973.3,0.6011338]
[1771738870049,5.78719293,1973.7,1973.3,0.6011338]
[1771738870347,0.01356713,1973.8,1973.3,0.6011338]
[1771738870549,5.78702289,1973.7,1973.3,0.6011338]
[1771738870846,0.01356713,1973.8,1973.3,0.6011338]
[1771738871048,5.78702289,1973.7,1973.3,0.6011338]
[1771738871248,0.01356713,1973.8,1973.3,0.6011338]
[1771738871449,5.78687453,1973.7,1973.3,0.6011338]
[1771738871648,0.01356713,1973.8,1973.3,0.6011338]
[1771738871850,5.78687453,1973.7,1973.3,0.6011338]
[1771738872049,0.01356713,1973.8,1973.3,0.6011338]
[1771738872250,5.78679885,1973.7,1973.3,0.6011338]
[1771738872451,0.01356713,1973.8,1973.3,0.6011338]
[1771738874350,0.00913134,1973.9,1973.3,0.6011338]
[1771738874549,5.78699286,1973.8,1973.3,0.6011338]
[1771738874750,0.00913134,1973.9,1973.3,0.6011338]
[1771738874946,5.78699104,1973.8,1973.3,0.6011338]
[1771738875254,0.00913134,1973.9,1973.3,0.6011338]
[1771738875452,5.7870301,1973.8,1973.3,0.6011338]
[1771738875653,0.00913134,1973.9,1973.3,0.6011338]
[1771738875852,5.78702974,1973.8,1973.3,0.6011338]
[1771738876049,0.00913134,1973.9,1973.3,0.6011338]
[1771738876251,5.79597389,1973.8,1973.3,0.6011338]
[1771738876453,0.00899313,1973.8,1973.3,0.6011338]
[1771738883255,5.78754938,1973.7,1973.3,0.6011338]
[1771738883452,0.00899313,1973.8,1973.3,0.6011338]
[1771738883850,5.78671002,1973.7,1973.3,0.6011338]
[1771738884054,0.00899313,1973.8,1973.3,0.6011338]
[1771738884254,5.78674375,1973.7,1973.3,0.6011338]
[1771738884453,0.00899313,1973.8,1973.3,0.6011338]
[1771738884752,5.78683904,1973.7,1973.3,0.6011338]
[1771738884948,0.00899313,1973.8,1973.3,0.6011338]
[1771738885149,5.78683842,1973.7,1973.3,0.6011338]
[1771738885351,0.00899313,1973.8,1973.3,0.6011338]
[1771738885551,5.78698365,1973.7,1973.3,0.6011338]
[1771738885753,0.00899313,1973.8,1973.3,0.6011338]
[1771738885955,5.78698311,1973.7,1973.3,0.6011338]
[1771738886153,0.00899313,1973.8,1973.3,0.6011338]
[1771738886353,5.78705092,1973.7,1973.3,0.6011338]
[1771738886557,0.00899313,1973.8,1973.3,0.6011338]
[1771738886753,5.78705434,1973.7,1973.3,0.6011338]
[1771738887049,0.00899313,1973.8,1973.3,0.6011338]
[1771738887254,5.78714701,1973.7,1973.3,0.6011338]
[1771738887456,0.00899313,1973.8,1973.3,0.6011338]
[1771738887656,5.78723689,1973.7,1973.3,0.6011338]
[1771738887859,0.00899313,1973.8,1973.3,0.6011338]
[1771738888060,5.78723614,1973.7,1973.3,0.6011338]
[1771738888259,0.00899313,1973.8,1973.3,0.6011338]
[1771738888460,5.7874683,1973.7,1973.3,0.6011338]
[1771738888661,0.00899313,1973.8,1973.3,0.6011338]
[1771738888861,5.78746876,1973.7,1973.3,0.6011338]
[1771738889157,0.00899313,1973.8,1973.3,0.6011338]
[1771738889358,5.78770031,1973.7,1973.3,0.6011338]
[1771738889658,0.00899313,1973.8,1973.3,0.6011338]
[1771738889859,5.78769921,1973.7,1973.3,0.6011338]
[1771738890060,0.00899313,1973.8,1973.3,0.6011338]
[1771738890259,5.78770104,1973.7,1973.3,0.6011338]
[1771738890461,0.00899313,1973.8,1973.3,0.6011338]
[1771738890662,5.78777852,1973.7,1973.3,0.6011338]
[1771738890961,0.00899313,1973.8,1973.3,0.6011338]
[1771738891159,5.78777829,1973.7,1973.3,0.6011338]
[1771738891360,0.00899313,1973.8,1973.3,0.6011338]
[1771738891560,5.78803302,1973.7,1973.3,0.6011338]
[1771738891760,0.00899313,1973.8,1973.3,0.6011338]
[1771738891960,5.78803338,1973.7,1973.3,0.6011338]
[1771738892157,0.00899313,1973.8,1973.3,0.6011338]
[1771738892359,5.78832387,1973.7,1973.3,0.6011338]
[1771738892560,0.00899313,1973.8,1973.3,0.6011338]
[1771738892761,5.7883184,1973.7,1973.3,0.6011338]
[1771738892962,0.00899313,1973.8,1973.3,0.6011338]
[1771738893262,5.7883181,1973.7,1973.3,0.6011338]
[1771738893462,0.00899313,1973.8,1973.3,0.6011338]
[1771738893666,5.78862645,1973.7,1973.3,0.6011338]
[1771738893964,0.00899313,1973.8,1973.3,0.6011338]
[1771738894163,5.78862681,1973.7,1973.3,0.6011338]
[1771738894358,0.00899313,1973.8,1973.3,0.6011338]
[1771738894559,5.78898434,1973.7,1973.3,0.6011338]
[1771738894766,0.00899313,1973.8,1973.3,0.6011338]
[1771738894965,5.78898434,1973.7,1973.3,0.6011338]
[1771738895165,0.00899313,1973.8,1973.3,0.6011338]
[1771738895365,4.5118162,1974.0,1973.3,0.6011338]
[1771738895566,5.78989443,1973.9,1973.3,0.6011338]
[1771738895767,5.78989443,1973.8,1973.3,0.6011338]
[1771738895966,4.5118162,1974.0,1973.3,0.6011338]
[1771738896168,5.78994267,1973.9,1973.3,0.6011338]
[1771738896364,4.5118162,1974.0,1973.3,0.6011338]
[1771738896365,5.78994267,1973.8,1973.3,0.6011338]
[1771738896661,4.5118162,1974.0,1973.3,0.6011338]
[1771738896857,5.79079076,1973.9,1973.3,0.6011338]
[1771738897063,5.79079076,1973.8,1973.3,0.6011338]
[1771738897362,4.5118162,1974.0,1973.3,0.6011338]
[1771738897562,5.7906502,1973.9,1973.3,0.6011338]
[1771738897760,5.7906502,1973.8,1973.3,0.6011338]
[1771738897960,4.5118162,1974.0,1973.3,0.6011338]
[1771738898161,5.79065032,1973.9,1973.3,0.6011338]
[1771738898360,5.79065032,1973.8,1973.3,0.6011338]
[1771738898565,0.00363341,1973.9,1973.3,0.6011338]
[1771738898764,5.79055656,1973.8,1973.3,0.6011338]
[1771738898967,0.00363341,1973.9,1973.3,0.6011338]
[1771738899164,5.79054125,1973.8,1973.3,0.6011338]
[1771738899364,0.00363341,1973.9,1973.3,0.6011338]
[1771738899570,5.79049093,1973.8,1973.3,0.6011338]
[1771738899770,0.00363341,1973.9,1973.3,0.6011338]
[1771738899965,5.79049021,1973.8,1973.3,0.6011338]
[1771738900167,0.00363341,1973.9,1973.3,0.6011338]
[1771738900468,0.00344276,1973.7,1973.3,0.6011338]
[1771738910576,5.40429368,1973.9,1973.3,0.6011338]
[1771738910877,5.80015156,1973.8,1973.3,0.6011338]
[1771738911075,5.79136364,1973.7,1973.3,0.6011338]
[1771738912879,5.80183403,1973.7,1973.3,0.6011338]
[1771738913079,0.01047039,1973.7,1973.3,0.6011338]
[1771738914178,5.79748609,1973.6,1973.1,0.56246627]
[1771738914371,0.57493813,1973.7,1973.1,0.56246627]
[1771738914575,5.79717145,1973.6,1973.1,0.56246627]
[1771738914773,0.57493813,1973.6,1973.1,0.56246627]
[1771738923190,0.57493813,1973.4,1973.0,0.56246627]
[1771738923683,0.57493813,1973.4,1972.8,0.56246627]
[1771738934797,0.56565304,1973.6,1972.9,0.55530612]
[1771738936100,4.24997375,1973.8,1972.9,0.55530612]
[1771738936399,6.35745215,1973.7,1972.9,0.55530612]
[1771738936597,5.79179911,1973.6,1972.9,0.55530612]
[1771738939602,6.35745215,1973.6,1972.9,0.55530612]
[1771738939803,5.79179911,1973.5,1972.9,0.55530612]
[1771738940703,6.35745215,1973.5,1972.9,0.55530612]
[1771738940904,0.56565304,1973.5,1972.9,0.55530612]
[1771738945207,5.82109298,1973.4,1972.9,0.55530612]
[1771738945508,0.56565304,1973.4,1972.9,0.55530612]
[1771738953623,0.56565304,1973.6,1972.9,0.55530612]
[1771738953820,6.39088037,1973.5,1972.9,0.55530612]
[1771738954020,5.82522733,1973.4,1972.9,0.55530612]
[1771738954221,0.56565304,1973.5,1972.9,0.55530612]
[1771738954522,5.82545686,1973.4,1972.9,0.55530612]
[1771738954716,0.56565304,1973.5,1972.9,0.55530612]
[1771738954921,5.82544405,1973.4,1972.9,0.55530612]
[1771738955121,0.56565304,1973.5,1972.9,0.55530612]
[1771738962034,0.5597918,1973.6,1972.9,0.55530612]
[1771738962236,6.38531975,1973.5,1972.9,0.55530612]
[1771738962436,0.5597918,1973.5,1972.9,0.55530612]
[1771738979460,0.5597918,1973.7,1972.9,0.55530612]
[1771738979655,5.80543659,1973.6,1972.9,0.55530612]
[1771738979850,0.5597918,1973.6,1973.2,0.56032286]
[1771738981362,0.5597918,1973.6,1973.0,0.56032286]
[1771738993672,0.5597918,1973.6,1973.2,0.59223746]
[1771739004678,0.58778318,1973.8,1973.3,0.59223746]
[1771739004879,6.39703974,1973.7,1973.3,0.59223746]
[1771739005078,5.80925656,1973.6,1973.3,0.59223746]
[1771739005475,6.39703974,1973.6,1973.3,0.59223746]
[1771739005674,0.58778318,1973.6,1973.3,0.59223746]
[1771739018387,0.57803341,1973.8,1973.3,0.59223746]
[1771739018586,4.25618939,1973.9,1973.3,0.59223746]
[1771739018587,6.38694423,1973.7,1973.3,0.59223746]
[1771739018787,0.57803341,1973.7,1973.3,0.59223746]
[1771739019684,0.57803341,1973.8,1973.5,0.55909973]
[1771739019886,4.25618939,1973.9,1973.5,0.55909973]
[1771739019887,0.57803341,1973.9,1973.5,0.55909973]
[1771739020088,5.8093955,1973.8,1973.5,0.55909973]
[1771739020388,0.57803341,1973.9,1973.5,0.55909973]
[1771739020587,6.38632426,1973.8,1973.5,0.55909973]
[1771739020787,0.57803341,1973.8,1973.5,0.55909973]
[1771739031198,0.57803341,1973.8,1973.4,1.70993994]
[1771739031399,0.57803341,1973.8,1973.4,1.15084021]
[1771739031700,0.57803341,1973.8,1973.4,1.70993994]
[1771739032598,0.57803341,1973.8,1973.5,0.55909973]
[1771739053419,4.80273543,1974.0,1973.5,0.55909973]
[1771739053614,5.81260649,1973.9,1973.5,0.55909973]
[1771739053819,5.81260649,1973.8,1973.5,0.55909973]
[1771739056021,6.35915253,1973.8,1973.5,0.55909973]
[1771739056221,0.54654604,1973.8,1973.5,0.55909973]
[1771739060719,0.54654604,1973.8,1973.1,0.56741191]
[1771739076740,0.54654604,1973.8,1973.2,0.56741191]
[1771739085142,0.54654604,1973.8,1973.2,0.56678443]
[1771739085344,0.54654604,1973.8,1973.0,8.54529383]
[1771739085643,0.54654604,1973.8,1973.1,0.56678443]
[1771739090448,0.54654604,1973.8,1973.0,7.9785094]
[1771739091044,0.54654604,1973.8,1973.1,0.56678443]
[1771739098456,0.54750859,1973.6,1973.1,0.56678443]
[1771739106160,0.54750859,1973.6,1973.2,1.71780226]
[1771739106361,0.54750859,1973.6,1973.2,1.15101783]
[1771739106560,0.54750859,1973.6,1973.1,0.56678443]
[1771739130080,0.54750859,1973.6,1973.2,0.5500501]
[1771739140188,0.54750859,1973.6,1973.1,0.5587962]
[1771739142187,0.54750859,1973.6,1973.1,1.70981403]
[1771739142388,0.54750859,1973.6,1973.2,0.5587962]
[1771739158894,0.55837924,1973.8,1973.2,0.5587962]
[1771739159192,6.36652481,1973.7,1973.4,0.5587962]
[1771739159394,0.55837924,1973.7,1973.4,0.5587962]
[1771739161097,0.55837924,1973.9,1973.6,0.5587962]
[1771739161392,6.36661143,1973.8,1973.5,1.70981403]
[1771739161592,0.55837924,1973.8,1973.5,1.70981403]
[1771739162491,0.55837924,1973.8,1973.5,0.5587962]
[1771739168698,0.55837924,1973.8,1973.4,0.55445944]
[1771739169600,0.55837924,1973.8,1973.1,0.55445944]
[1771739177400,5.80406692,1973.7,1973.1,0.55445944]
[1771739177601,0.57122219,1973.6,1973.1,0.55445944]
[1771739179300,4.2530162,1974.0,1973.1,0.55445944]
[1771739179503,0.57122219,1973.8,1973.1,0.55445944]
[1771739188300,0.57122219,1973.6,1973.1,0.55445944]
[1771739227433,4.2530162,1973.9,1972.7,0.56872272]
[1771739227434,0.57405293,1973.2,1972.7,0.56872272]
[1771739237450,0.56457931,1973.4,1973.0,1.74953045]
[1771739238244,0.56457931,1973.4,1973.0,0.59851282]
[1771739242445,0.56457931,1973.4,1972.9,0.59851282]
[1771739246351,0.56457931,1973.5,1972.9,0.59851282]
[1771739248456,0.56457931,1973.5,1973.1,0.59851282]
[1771739255955,0.56457931,1973.5,1973.0,0.59851282]
[1771739256161,0.56457931,1973.3,1972.9,0.59851282]
[1771739257560,0.56457931,1973.1,1972.6,0.59851282]
[1771739258259,0.59303635,1973.0,1972.4,0.55944219]
[1771739258657,0.59303635,1973.0,1972.4,0.5641475]
[1771739258955,0.59303635,1972.8,1972.4,0.00470531]
[1771739259158,0.59303635,1972.8,1972.3,0.55944219]
[1771739260051,0.59792148,1972.8,1972.3,0.5649068]
[1771739262159,0.59792148,1972.8,1972.3,0.00546461]
[1771739263962,0.59792148,1972.8,1972.3,0.5649068]
[1771739269568,0.59792148,1972.8,1972.3,0.00546461]
[1771739276173,0.59792148,1972.8,1972.3,0.5649068]
[1771739277076,0.59792148,1972.8,1972.3,0.00546461]
[1771739277879,0.59792148,1972.8,1972.3,0.5649068]
[1771739281981,0.59792148,1972.8,1972.3,0.00546461]
[1771739282180,0.59792148,1972.8,1972.4,0.55944219]
[1771739282779,0.59792148,1972.8,1972.3,1.71592443]
[1771739283580,0.59792148,1972.8,1972.3,0.5649068]
[1771739285181,0.59792148,1972.8,1972.3,0.00546461]
[1771739285381,0.59792148,1972.8,1972.3,0.5649068]
[1771739288281,0.57173316,1972.6,1972.3,0.5649068]
[1771739291185,0.57173316,1972.6,1971.9,7.9785094]
[1771739291483,0.57173316,1972.6,1972.3,0.2511969]
[1771739291684,0.57173316,1972.6,1971.9,7.9785094]
[1771739292186,0.57173316,1972.6,1971.9,7.98476492]
[1771739292385,0.57173316,1972.6,1971.9,0.00625552]
[1771739294886,0.57173316,1972.6,1972.0,0.00235145]
[1771739300889,0.57173316,1972.6,1971.9,0.00625552]
[1771739301089,0.61121966,1972.4,1971.9,0.00625552]
[1771739301291,0.61121966,1972.4,1971.3,7.9785094]
[1771739301993,0.61121966,1972.2,1971.2,7.9785094]
[1771739302295,0.61121966,1972.2,1971.2,0.00614322]
[1771739302897,0.61121966,1972.2,1971.3,0.0366539]
[1771739305200,0.61121966,1972.2,1971.4,0.03546355]
[1771739308403,0.61121966,1972.2,1971.2,0.00614322]
[1771739308404,0.59365014,1972.5,1971.7,0.03484712]
[1771739323823,0.59365014,1972.5,1971.9,1.15207603]
[1771739324317,0.59365014,1972.5,1971.6,1.15207603]
[1771739330120,0.59365014,1972.5,1971.9,1.15207603]
[1771739330323,0.59365014,1972.5,1971.6,9.13058543]
[1771739331926,0.59365014,1972.5,1971.6,9.38427543]
[1771739332126,0.58020289,1972.7,1972.1,0.4787576]
[1771739347942,0.58020289,1972.7,1972.3,1.71686427]
[1771739358150,0.58020289,1972.7,1972.4,0.59129541]
[1771739358447,1e-08,1972.8,1972.6,0.59129541]